Cogmind - Beta 11.1 @@@ ROGUE MODE // 2022.05.17 @ 20:38:18 Player: Lyra Result: Escaped! Performance ------------- Evolutions (9) 4500 Regions Visited (29) 5800 Robots Destroyed (221) 1105 Value Destroyed (7798) 7798 Prototype IDs (47) 940 Alien Tech Used (3) 600 Bonus (12269) 12269 TOTAL SCORE: 33012 Bonus ------- High Alert Combat Kills 293 Follower Combat Kills 588 Met Data Miner 300 Met Imprinter 300 Met Zhirov 300 Met Warlord at Base 500 MAIN.C Attacked Warlord 500 Met Warlord at Research 2000 Scanned by Researcher 500 Acquired SGEMP 2000 Delivered SGEMP 2000 Win 3000 Friendly Fire -12 Cogmind --------- Core Integrity 1538/1600 Matter 290/300 Energy 168/410 System Corruption 0% Temperature Cool (8) Movement Hovering (16) Location To Epsilon Eridani Parts ------- > --- POWER (2) -------- Light Antimatter Reactor Particle Reactor > --- PROPULSION (6) --- Cooled Gravmag System Cooled Gravmag System Improved Antigrav System Improved Antigrav System Cooled Antigrav System Cooled Antigrav System > --- UTILITY (16) ----- Advanced Power Amplifier Medium Storage Unit Advanced Weight Redist. System Spectral Analyzer Advanced Signal Interpreter Experimental Core Analyzer Improved Transmission Jammer Advanced ECM Suite Advanced Reaction Control System Cloaking Device Light Regenerative Plating Experimental Focal Shield Experimental Shield Generator Improved Hacking Suite > --- WEAPON (2) ------- Vortex Shotgun Vortex Lance > --- INVENTORY (10) --- Light Quantum Reactor Antigrav System Vortex Shotgun (41) Enhanced Nova Cannon Vortex Catalyst Activator (10) Vortex Lance (39) Peak State ------------ > --- POWER ------------ Light Antimatter Reactor Particle Reactor > --- PROPULSION ------- Cooled Gravmag System Cooled Gravmag System Improved Antigrav System Improved Antigrav System Cooled Antigrav System Cooled Antigrav System > --- UTILITY ---------- Advanced Power Amplifier Medium Storage Unit Advanced Weight Redist. System Spectral Analyzer Long-range Sensor Array Advanced Signal Interpreter Experimental Core Analyzer Improved Transmission Jammer Advanced ECM Suite Advanced Reaction Control System Cloaking Device Light Regenerative Plating Experimental Focal Shield Experimental Shield Generator > --- WEAPON ----------- Vortex Shotgun Vortex Lance > --- INVENTORY -------- Light Quantum Reactor Antigrav System Improved Hacking Suite Vortex Shotgun Enhanced Nova Cannon Vortex Catalyst Activator Vortex Lance SGEMP Prototype [Rating: 175] Favorites ----------- Power Improved Deuterium Engine Engine Improved Deuterium Engine Power Core Micro Nuclear Core Reactor Light Antimatter Reactor Propulsion Aluminum Leg Treads Medium Treads Leg Aluminum Leg Wheel Armored Huge Wheel Hover Unit Cooled Gravmag System Flight Unit VTOL Module Utility Advanced Targeting Computer Device Structural Scanner Storage Medium Storage Unit Processor Advanced Targeting Computer Hackware Ghost Barrier Protection Light Regenerative Plating Weapon Heavy Assault Cannon Energy Gun Gatling Laser Energy Cannon Heavy Phase Cannon Ballistic Gun Enhanced Autogun Ballistic Cannon Heavy Assault Cannon Launcher Rocket Array Impact Weapon Power Maul Slashing Weapon Axe Piercing Weapon Vortex Lance Build | -11 -10 -9 -8 -7 -7 -7 -7 -6 -6 -6 -6 -6 -5 -5 -5 -5 -5 -4 -4 -4 -4 -4 -4 -4 -3 -3 -3 -2 -1 ------- Run | Scr Mat Mat Mat Fac Low Low Dat Pro Fac Low Low Zio Pro Fac Upp Upp Zhi Pro Fac Was Fac Upp Upp War Pro Res Tes Res Acc Slots Evolved 18 | . . 2 2 2 . . . . 2 . . . . 2 . . . . 2 . . . . . . 2 . 2 2 Power 1 | . . . . . . . . . . . . . . 1 . . . . . . . . . . . . . . . Propulsion 4 | . . 2 . . . . . . . . . . . . . . . . 1 . . . . . . 1 . . . Utility 13 | . . . 2 2 . . . . 2 . . . . 1 . . . . 1 . . . . . . 1 . 2 2 Weapon . | . . . . . . . . . . . . . . . . . . . . . . . . . . . . . . Parts Attached 379 | 6 17 19 26 80 3 3 1 5 25 5 8 7 14 35 3 7 11 3 24 . 8 2 5 20 . 6 19 16 1 Power 24 | 1 2 3 2 3 . . . . 1 . 1 . . 2 . . . . 2 . 1 . . 3 . . 2 1 . Engine 10 | 1 2 2 1 2 . . . . 1 . 1 . . . . . . . . . . . . . . . . . . Core 7 | . . 1 1 1 . . . . . . . . . 2 . . . . . . 1 . . 1 . . . . . Reactor 7 | . . . . . . . . . . . . . . . . . . . 2 . . . . 2 . . 2 1 . Propulsion 94 | 2 7 9 8 30 . . . . 2 . 2 3 1 12 . . 3 . 4 . 2 . . 4 . 1 . 4 . Treads 14 | . . . . 11 . . . . 2 . 1 . . . . . . . . . . . . . . . . . . Leg 29 | . 7 9 8 4 . . . . . . 1 . . . . . . . . . . . . . . . . . . Wheel 5 | 2 . . . 3 . . . . . . . . . . . . . . . . . . . . . . . . . Hover 38 | . . . . 4 . . . . . . . 3 1 12 . . 3 . 4 . 2 . . 4 . 1 . 4 . Flight 8 | . . . . 8 . . . . . . . . . . . . . . . . . . . . . . . . . Utility 165 | 1 5 4 8 31 1 . . 1 11 2 2 3 8 19 2 3 6 1 12 . 1 2 5 6 . 4 15 11 1 Device 82 | . 2 . . 6 1 . . . 3 2 1 . 5 12 . 2 4 1 8 . 1 2 5 4 . 2 12 9 . Storage 17 | 1 2 1 1 7 . . . . . . 1 . . 2 . . 1 . 1 . . . . . . . . . . Processor 19 | . 1 1 3 5 . . . . . . . 3 . . . 1 . . 1 . . . . 1 . 1 . 2 . Hackware 10 | . . . 1 4 . . . . . . . . . 1 . . . . 1 . . . . 1 . . 1 . 1 Protection 37 | . . 2 3 9 . . . 1 8 . . . 3 4 2 . 1 . 1 . . . . . . 1 2 . . Artifact . | . . . . . . . . . . . . . . . . . . . . . . . . . . . . . . Weapon 96 | 2 3 3 8 16 2 3 1 4 11 3 3 1 5 2 1 4 2 2 6 . 4 . . 7 . 1 2 . . Energy Gun 13 | . 1 . 2 2 . . . . . . . . . . 1 2 1 . . . . . . 2 . 1 1 . . Energy Cannon 10 | . . . . . . . . . . . . . 2 . . . 1 . 3 . 3 . . 1 . . . . . Ballistic Gun 19 | 2 1 3 6 4 . . . . . . . . . . . . . . 2 . 1 . . . . . . . . Ballistic Cannon 16 | . . . . 2 1 1 1 1 4 1 1 1 1 . . . . 1 1 . . . . . . . . . . Launcher 22 | . . . . 1 1 2 . 3 5 2 2 . 2 1 . 1 . 1 . . . . . 1 . . . . . Special Weapon . | . . . . . . . . . . . . . . . . . . . . . . . . . . . . . . Impact Weapon 8 | . 1 . . 3 . . . . 2 . . . . 1 . 1 . . . . . . . . . . . . . Slashing Weapon 4 | . . . . 4 . . . . . . . . . . . . . . . . . . . . . . . . . Piercing Weapon 4 | . . . . . . . . . . . . . . . . . . . . . . . . 3 . . 1 . . Special Melee Weapon . | . . . . . . . . . . . . . . . . . . . . . . . . . . . . . . Unidentified Prototypes 29 | . . 2 2 2 . . . . . . . 2 . . . . 3 . . . . . 1 8 . 1 7 1 . Corrupted Parts 1 | . 1 . . . . . . . . . . . . . . . . . . . . . . . . . . . . System Corruption 3 | . 3 . . . . . . . . . . . . . . . . . . . . . . . . . . . . Parts Lost 49 | . 3 8 2 7 . . . 1 9 2 5 . 1 3 . 2 . . . . . . 1 . . . 4 . 1 Power 9 | . 1 2 1 1 . . . . 1 . 1 . . 1 . . . . . . . . . . . . 1 . . Propulsion 13 | . 1 4 . 2 . . . . 1 . 2 . 1 1 . . . . . . . . . . . . 1 . . Utility 19 | . . . 1 4 . . . 1 4 2 1 . . 1 . 1 . . . . . . 1 . . . 2 . 1 Weapon 8 | . 1 2 . . . . . . 3 . 1 . . . . 1 . . . . . . . . . . . . . Highest Loss Streak 5 | . 1 5 1 3 . . . 1 4 2 5 . 1 1 . 2 . . . . . . 1 . . . 3 . 1 To Critical Strikes 1 | . . . . . . . . . . . . . . . . . . . . . . . . . . . 1 . . Average Slot Usage (%) 89 | . 85 94 99 87 76 77 69 75 74 84 82 84 98 93 88 89 93 94 99 100 100 100 99 99 100 99 99 93 92 Engine 3 | . 8 1 1 5 7 7 7 7 5 6 5 6 6 . . . . . . . . . . . . . . . . Core 2 | . . 8 7 . . . . . . . . . . 10 5 5 5 5 3 . 2 5 5 5 5 4 3 . . Treads 5 | . . . . 11 . . . . 3 13 12 13 8 . . . . . . . . . . . . . . . . Leg 6 | . 25 42 36 7 . . . . . . 3 1 . . . . . . . . . . . . . . . . . Wheel 2 | . 2 . . 4 15 15 15 15 9 6 1 . . . . . . . . . . . . . . . . . . Hover 8 | . . . . . . . . . . . . 4 17 18 23 23 22 23 26 26 26 26 25 25 25 27 27 21 23 Device 12 | . 8 . . 9 13 15 15 10 8 18 18 14 9 17 11 12 7 5 12 15 15 15 18 22 20 22 29 36 33 Storage 6 | . 14 11 9 5 7 7 7 7 6 6 6 6 6 4 5 5 5 5 3 5 5 5 5 5 5 4 4 4 3 Processor 16 | . 2 3 17 10 15 15 15 15 13 13 13 27 26 23 23 23 29 29 25 26 26 26 23 20 20 17 13 12 11 Protection 9 | . . 7 8 15 8 7 7 10 20 13 13 3 9 4 8 6 8 11 6 5 5 5 5 5 5 3 3 4 3 Energy Gun 1 | . 2 . . 3 . . . . . . . . . . 2 3 3 . . . . . . . . 3 4 4 3 Energy Cannon 1 | . . . . . . . . . . . . . 10 4 . . 1 . 3 . 2 5 5 1 . . . . . Ballistic Gun 3 | . 8 19 17 3 . . . . . . . . . . . . . . 1 5 2 . . . . . . . . Ballistic Cannon 2 | . . . . 3 6 5 . 6 5 5 4 5 . . . . . 4 . . . . . . . . . . . Impact Weapon 1 | . 10 . . . . . . . . . . . . 3 5 4 5 5 5 5 5 5 5 1 . . . . . Naked Turns . | . . . . . . . . . . . . . . . . . . . . . . . . . . . . . . Heaviest Build 144 | 12 49 60 63 111 111 108 108 114 144 140 117 75 90 80 36 42 42 46 61 57 57 53 55 56 50 59 78 76 76 Greatest Support 103 | 20 20 40 45 96 56 56 56 56 56 28 48 48 48 42 42 42 42 42 68 68 70 70 55 59 59 98 102 81 103 Greatest Overweight (x) 5 | 1 2 1 1 3 1 1 1 2 5 4 4 3 4 2 1 1 1 1 1 . . . . 1 . . 1 1 . Average Overweight (x) . | . . . . . 1 1 1 1 3 3 2 2 1 . . . . . . . . . . . . . . . . Largest Inventory Capacity 25 | 8 20 20 20 25 25 25 25 25 25 25 25 20 20 20 10 10 10 10 10 10 10 10 10 10 10 10 10 10 10 Average Capacity 16 | 7 13 17 15 13 25 25 25 25 25 25 22 20 20 12 10 10 10 10 8 10 10 10 10 10 10 10 10 10 10 Most Carried 25 | 1 18 20 20 25 25 25 25 25 25 25 25 20 20 20 10 10 10 10 10 10 10 10 10 10 10 10 10 10 8 Average Carried 15 | . 8 16 15 11 24 24 25 24 22 24 22 19 19 11 8 9 9 10 8 10 9 10 9 9 10 9 9 9 7 Final Capacity 25 | 8 20 15 20 25 25 25 25 25 25 25 20 20 20 10 10 10 10 10 10 10 10 10 10 10 10 10 10 10 10 Final Carried 25 | . 18 15 20 25 25 25 25 24 25 25 20 20 20 7 9 10 10 10 10 10 10 10 9 10 10 10 9 10 7 Class Distribution -------------------- 41% | Mutant 16% | Scavenger-Mutant 11% | Skirmisher 9% | Scout 6% | Hacker-Ninja 4% | Derelict-Mutant 4% | Infiltrator-Ninja 3% | Assassin Dominant Class ---------------- Mutant | -10/Materials Scavenger-Mutant | -9/Materials Scavenger-Mutant | -8/Materials Mutant | -7/Factory Skirmisher | -7/Lower Caves Skirmisher | -7/Lower Caves Mutant | -7/Data Miner Mutant | -6/Proximity Caves Mutant | -6/Factory Mutant | -6/Lower Caves Mutant | -6/Lower Caves Skirmisher | -6/Zion Derelict-Mutant | -5/Proximity Caves Mutant | -5/Factory Scout | -5/Upper Caves Assassin | -5/Upper Caves Scout | -5/Zhirov Mutant | -4/Proximity Caves Scout | -4/Factory Scout | -4/Waste Scout | -4/Factory Scout | -4/Upper Caves Infiltrator-Ninja | -4/Upper Caves Hacker-Ninja | -4/Warlord Hacker-Ninja | -3/Proximity Caves Hacker-Ninja | -3/Research Ninja | -3/Testing Infiltrator-Ninja | -2/Research Infiltrator-Ninja | -1/Access Resources | -11 -10 -9 -8 -7 -7 -7 -7 -6 -6 -6 -6 -6 -5 -5 -5 -5 -5 -4 -4 -4 -4 -4 -4 -4 -3 -3 -3 -2 -1 ----------- Run | Scr Mat Mat Mat Fac Low Low Dat Pro Fac Low Low Zio Pro Fac Upp Upp Zhi Pro Fac Was Fac Upp Upp War Pro Res Tes Res Acc Matter Collected 9972 | 168 681 615 1517 1659 201 50 . 105 1637 208 197 74 608 357 65 142 206 275 308 . 194 35 . 255 . 50 13 352 . Remotely . | . . . . . . . . . . . . . . . . . . . . . . . . . . . . . . Salvage Created 8192 | . 664 901 1523 1317 141 12 . 117 878 214 151 . 304 637 24 219 206 54 303 . 28 . . . 114 123 66 190 6 Parts 378 | . 22 62 73 58 6 2 . 5 37 5 10 . 22 30 1 8 . 2 6 . . . . . 3 13 5 4 4 Haulers Intercepted 9 | . . 2 2 1 . . . . 2 . . . . . . . . . . . . . . . . . . 2 . Recyclers Shooed 9 | . 1 3 2 2 . . . . . . . . . 1 . . . . . . . . . . . . . . . Parts Field Recycled . | . . . . . . . . . . . . . . . . . . . . . . . . . . . . . . Retrieved Matter . | . . . . . . . . . . . . . . . . . . . . . . . . . . . . . . Parts Self-Destructed 46 | . . . . . 6 1 . 2 . 1 7 . 13 . . 3 . 5 . . . 3 2 . 3 . . . . Prevented 5 | . . . . . . . . . . . . . . . . . . 5 . . . . . . . . . . . Kills | -11 -10 -9 -8 -7 -7 -7 -7 -6 -6 -6 -6 -6 -5 -5 -5 -5 -5 -4 -4 -4 -4 -4 -4 -4 -3 -3 -3 -2 -1 ------- Run | Scr Mat Mat Mat Fac Low Low Dat Pro Fac Low Low Zio Pro Fac Upp Upp Zhi Pro Fac Was Fac Upp Upp War Pro Res Tes Res Acc Combat Hostiles Destroyed 183 | . 15 18 28 21 9 4 . 3 26 5 6 . 12 15 4 5 . 4 2 . . . . . 2 3 1 . . Melee 19 | . 9 . . 1 . . . . 1 . . . . 2 . . . . 1 . . . . . 2 3 . . . Guns 60 | . 3 18 28 10 . . . . . . . . . . . . . . . . . . . . . . 1 . . Cannons 37 | . . . . 9 1 . . . 19 1 . . 2 5 . . . . . . . . . . . . . . . AOE 59 | . . . . . 8 4 . 3 5 4 6 . 10 6 4 5 . 4 . . . . . . . . . . . Classes Destroyed 18 | . 7 3 1 2 1 . . . 1 1 1 . . . . . . . . . . . . . . . 1 . . Worker 6 | . 1 . . 1 . . . . . . . . . 3 . . . . . . . . . . . 1 . . . Builder 8 | . 1 . . 1 . . . . 2 . . . . 1 . . . . . . . . . . . 2 . . 1 Tunneler 1 | . . 1 . . . . . . . . . . . . . . . . . . . . . . . . . . . Hauler 9 | . . 2 2 1 . . . . 2 . . . . . . . . . . . . . . . . . . 2 . Recycler 11 | . 1 2 3 4 . . . . . . . . . . . . . . 1 . . . . . . . . . . Operator 2 | . 1 . . 1 . . . . . . . . . . . . . . . . . . . . . . . . . Watcher 8 | . 2 2 2 . . . . . . . . . . . . . . . 1 . 1 . . . . . . . . Swarmer 64 | . 3 7 10 4 . 4 . 3 4 . . . 10 8 4 . . 4 . . . . . . . 3 . . . Grunt 65 | . 12 8 13 5 . . . . 16 3 . . . 3 . 5 . . . . . . . . . . . . . Brawler 2 | . . . 1 . . . . . . 1 . . . . . . . . . . . . . . . . . . . Duelist 1 | . . . . . . . . . 1 . . . . . . . . . . . . . . . . . . . . Researcher 1 | . . . . . . . . . . . . . . . . . . . . . . . . . . . 1 . . Sentry 13 | . . 3 4 4 . . . . 1 . . . . 1 . . . . . . . . . . . . . . . Hunter 9 | . . . . 3 . . . . 1 . . . 1 . . . . . 2 . . . . . 2 . . . . Programmer 15 | . . . . 5 1 . . . 3 1 . . 1 3 . . . . . . . . . . . . 1 . . Decomposer 2 | . . . . . 2 . . . . . . . . . . . . . . . . . . . . . . . . Packrat 1 | . . . . . . . . 1 . . . . . . . . . . . . . . . . . . . . . Samaritan 1 | . . . . . . . . . . 1 . . . . . . . . . . . . . . . . . . . Assembled 8 | . . . . . 8 . . . . . . . . . . . . . . . . . . . . . . . . Butcher 5 | . . . . . . . . . . . 5 . . . . . . . . . . . . . . . . . . Mutant 1 | . . . . . . . . . . . 1 . . . . . . . . . . . . . . . . . . Best Kill Streak 9 | . 4 9 9 4 8 4 . 3 4 4 6 . 5 6 4 5 . 4 2 . 1 . . . 2 6 2 2 1 Combat Bots Only 9 | . 3 9 7 4 8 4 . 3 4 4 6 . 5 6 4 5 . 4 2 . . . . . 2 3 1 . . Max Kills in Single Turn 6 | . 1 1 2 1 6 2 . 2 1 3 5 . 5 6 4 5 . 4 1 . 1 . . . 1 1 1 1 1 Gunslinging 1 | . . . 1 . . . . . . . . . . . . . . . . . . . . . . . . . . Exploded 6 | . . . . . 6 2 . 2 1 3 5 . 5 6 4 5 . 4 . . . . . . . . . . . Melee 1 | . 1 . . 1 . . . . 1 . . . . 1 . . . . 1 . . . . . 1 1 . . . Uniques/NPCs Destroyed . | . . . . . . . . . . . . . . . . . . . . . . . . . . . . . . Combat | -11 -10 -9 -8 -7 -7 -7 -7 -6 -6 -6 -6 -6 -5 -5 -5 -5 -5 -4 -4 -4 -4 -4 -4 -4 -3 -3 -3 -2 -1 -------- Run | Scr Mat Mat Mat Fac Low Low Dat Pro Fac Low Low Zio Pro Fac Upp Upp Zhi Pro Fac Was Fac Upp Upp War Pro Res Tes Res Acc Damage Taken 10532 | . 911 872 1074 1647 48 110 . 171 2051 239 538 . 386 1108 84 176 . 45 126 . . . 18 . 132 140 228 . 428 Core 1313 | . 237 137 137 250 . 16 . 20 127 . 15 . 32 168 10 23 . 13 22 . . . . . 13 20 11 . 62 Absorbed by Shields 680 | . . . . . . . . . 243 . . . 83 136 . . . . . . . . . . . . 150 . 68 Redirected to Shielding 116 | . . . . 110 . . . . . . 6 . . . . . . . . . . . . . . . . . . Regen/Repaired (Parts) 443 | . . . . . . . . . . . . . . 139 112 79 25 . 44 . . . . . . 24 4 . 16 Core Remaining (%) 76 | 100 5 65 75 . . . . 59 . . . . 79 . . . . 78 . . . . . . 96 . 90 100 96 Volleys Fired 472 | . 17 72 107 73 11 7 . 4 104 7 2 1 13 37 1 1 . 1 10 . 1 . . . . . 3 . . Largest 2 | . 2 2 2 2 1 2 . 1 2 2 2 1 2 1 1 1 . 1 1 . 1 . . . . . 2 . . Hottest 175 | . 70 70 50 160 60 72 . 60 72 100 100 60 175 90 50 50 . 50 98 . 98 . . . . . 120 . . Shots Fired 713 | . 27 125 215 121 14 10 . 6 106 9 5 1 14 38 1 2 . 1 10 . 2 . . . . . 6 . . Gun 467 | . 27 125 215 91 . . . . . . . . . . . 1 . . 1 . 1 . . . . . 6 . . Cannon 203 | . . . . 30 12 2 . 4 90 6 . 1 11 37 . . . . 9 . 1 . . . . . . . . Launcher 43 | . . . . . 2 8 . 2 16 3 5 . 3 1 1 1 . 1 . . . . . . . . . . . Special . | . . . . . . . . . . . . . . . . . . . . . . . . . . . . . . Kinetic 573 | . 14 117 215 110 12 2 . 4 90 6 . 1 . . . . . . 1 . 1 . . . . . . . . Thermal 91 | . 13 8 . 11 . . . . . . . . 11 37 . 1 . . 9 . 1 . . . . . . . . Explosive 43 | . . . . . 2 8 . 2 16 3 5 . 3 1 1 1 . 1 . . . . . . . . . . . Electromagnetic . | . . . . . . . . . . . . . . . . . . . . . . . . . . . . . . Entropic 6 | . . . . . . . . . . . . . . . . . . . . . . . . . . . 6 . . Robot Hit Streak 28 | . 14 11 15 28 4 . . 5 9 3 7 . 3 4 1 2 . . 3 . . . . . . . 5 . . Robot Miss Streak 14 | . 2 5 3 3 3 . . 1 7 5 3 . 10 2 6 4 . 13 14 . . . . . . . 3 . . Penetration Max 1 | . . . . . 1 . . . . . . . . . . . . . . . . . . . . . . . . Secondary Targets 6 | . . 3 2 1 . . . . . . . . . . . . . . . . . . . . . . . . . Max Gunslinging Chain 1 | . . 1 1 1 . . . . . . . . . . . . . . . . . . . . . . . . . Shots Hit Robots 561 | . 60 81 158 97 4 . . 2 72 5 3 . 8 34 1 1 4 . 8 . 1 . . . 4 7 5 4 2 Core Hits 372 | . 14 35 58 46 20 10 . 4 49 17 21 . 19 29 6 19 2 8 4 . . . . . 1 3 4 2 1 Critical Kills 3 | . 2 . . . . . . . . . . . . 1 . . . . . . . . . . . . . . . Critical Parts Destroyed 11 | . 7 . 1 . . . . . 1 . . . . 1 . . . . 1 . . . . . . . . . . Critical Strikes 32 | . 10 1 1 5 . . . . 9 1 . . . 2 . . . . 1 . . . . . 1 1 . . . Burn 2 | . 1 1 . . . . . . . . . . . . . . . . . . . . . . . . . . . Destroy 1 | . . . 1 . . . . . . . . . . . . . . . . . . . . . . . . . . Blast 13 | . . . . 4 . . . . 8 1 . . . . . . . . . . . . . . . . . . . Smash 13 | . 9 . . . . . . . 1 . . . . 2 . . . . 1 . . . . . . . . . . Sever 1 | . . . . 1 . . . . . . . . . . . . . . . . . . . . . . . . . Sunder 2 | . . . . . . . . . . . . . . . . . . . . . . . . . 1 1 . . . Melee Attacks 176 | . 65 . . 20 . . . . 4 . . . . 21 . 1 4 . 15 . 9 1 1 . 7 10 5 6 7 Impact 134 | . 65 . . 13 . . . . 4 . . . . 21 . 1 4 . 15 . 9 1 1 . . . . . . Slashing 7 | . . . . 7 . . . . . . . . . . . . . . . . . . . . . . . . . Piercing . | . . . . . . . . . . . . . . . . . . . . . . . . . . . . . . Entropic 35 | . . . . . . . . . . . . . . . . . . . . . . . . . 7 10 5 6 7 Sneak Attacks 19 | . 6 . . 1 . . . . . . . . . 4 . . . . 1 . . . . . . 3 . 2 2 Combat Hostiles 2 | . 1 . . . . . . . . . . . . . . . . . . . . . . . . . . . 1 Follow-up Attacks 1 | . . . . . . . . . . . . . . . . . . . . . . . . . 1 . . . . Damage Inflicted 22773 | . 1491 1284 2678 2509 761 422 . 230 4508 729 962 . 663 1899 431 547 497 207 413 . 64 . . . 339 1041 246 464 388 Guns 5754 | . 253 1284 2664 1307 . . . . . . . . . . . . . . . . . . . . . . 246 . . Cannons 5521 | . . . . 747 286 . . 49 3039 182 . . 177 877 . . . . 164 . . . . . . . . . . Explosions 5926 | . . . . . 475 422 . 181 1379 547 962 . 486 289 431 547 . 207 . . . . . . . . . . . Melee 5539 | . 1238 . . 437 . . . . 89 . . . . 733 . . 497 . 249 . 64 . . . 339 1041 . 464 388 Ramming 33 | . . . 14 18 . . . . 1 . . . . . . . . . . . . . . . . . . . . Kinetic 9379 | . 140 1223 2664 1796 286 . . 49 3039 182 . . . . . . . . . . . . . . . . . . . Thermal 1650 | . 113 61 . 258 . . . . . . . . 177 877 . . . . 164 . . . . . . . . . . Explosive 5926 | . . . . . 475 422 . 181 1379 547 962 . 486 289 431 547 . 207 . . . . . . . . . . . Electromagnetic . | . . . . . . . . . . . . . . . . . . . . . . . . . . . . . . Impact 3095 | . 1238 . . 225 . . . . 89 . . . . 733 . . 497 . 249 . 64 . . . . . . . . Slashing 212 | . . . . 212 . . . . . . . . . . . . . . . . . . . . . . . . . Piercing . | . . . . . . . . . . . . . . . . . . . . . . . . . . . . . . Entropic 2478 | . . . . . . . . . . . . . . . . . . . . . . . . . 339 1041 246 464 388 Highest Corruption 9 | . 5 1 9 8 8 8 8 8 4 5 5 5 1 3 3 3 . . . 5 5 5 5 5 . . 3 . . Average Corruption 4 | . 4 1 5 4 8 8 8 8 3 4 5 5 1 2 3 2 . . . 5 5 5 5 5 . . 2 . . Corruption Purged 8 | . . . . . . . . . . . . . 1 4 . 3 . . . . . . . . . . . . . Corruption Blocked . | . . . . . . . . . . . . . . . . . . . . . . . . . . . . . . Effects 231 | . 12 4 18 74 12 8 4 13 14 19 9 5 4 6 9 4 . . . 1 7 4 3 . . . 1 . . Message Errors 55 | . 3 1 2 20 2 3 2 3 4 4 1 1 2 1 3 1 . . . . . 1 1 . . . . . . Matter Fused 61 | . 4 . 6 23 2 . . 3 5 8 1 2 . 1 3 1 . . . . . 2 . . . . . . . Heat Flow Errors 21 | . . . 2 4 . 2 . 1 3 3 2 . . 1 1 . . . . . . . 1 . . . 1 . . Energy Discharges 33 | . 1 1 . 11 2 2 . . . 3 3 . 1 2 2 1 . . . 1 3 . . . . . . . . Parts Rejected 1 | . 1 . . . . . . . . . . . . . . . . . . . . . . . . . . . . Data Loss (minor) 31 | . 2 1 3 9 3 1 2 4 1 . 1 . 1 . . . . . . . 3 . . . . . . . . Data Loss (major) 11 | . 1 1 2 2 . . . . 1 . . 2 . . . . . . . . . 1 1 . . . . . . Misfires 17 | . . . 3 4 3 . . 2 . 1 1 . . 1 . 1 . . . . 1 . . . . . . . . Alerts 1 | . . . . 1 . . . . . . . . . . . . . . . . . . . . . . . . . Overload Shots . | . . . . . . . . . . . . . . . . . . . . . . . . . . . . . . Overflow Damage 2248 | . 322 . . 87 77 59 . 39 324 77 49 . 5 143 33 10 226 . 101 . 40 . . . 96 485 . 31 44 Projectiles 536 | . . . . 68 72 . . 39 277 77 . . . 3 . . . . . . . . . . . . . . . Explosions 164 | . . . . . 5 59 . . 3 . 49 . 5 . 33 10 . . . . . . . . . . . . . Melee 1548 | . 322 . . 19 . . . . 44 . . . . 140 . . 226 . 101 . 40 . . . 96 485 . 31 44 Knockbacks 45 | . 7 . . 3 . . . . 29 1 . . . 2 . . . . 2 . 1 . . . . . . . . Impact 12 | . 4 . . 2 . . . . 1 . . . . 2 . . . . 2 . 1 . . . . . . . . Kinetic 27 | . . . . 1 . . . . 25 1 . . . . . . . . . . . . . . . . . . . Secondary 6 | . 3 . . . . . . . 3 . . . . . . . . . . . . . . . . . . . . Self-Inflicted Damage 1016 | . . . . 7 8 . . 23 248 24 501 . 26 14 66 99 . . . . . . . . . . . . . Shots 38 | . . . . . 1 . . 1 8 1 17 . 2 1 3 4 . . . . . . . . . . . . . Rammed 2 | . . . . 1 . . . . 1 . . . . . . . . . . . . . . . . . . . . Targets Rammed 5 | . . . 2 2 . . . . 1 . . . . . . . . . . . . . . . . . . . . Kicked 3 | . . . 2 1 . . . . . . . . . . . . . . . . . . . . . . . . . Crushed . | . . . . . . . . . . . . . . . . . . . . . . . . . . . . . . Highest Temperature 317 | . 144 130 317 250 24 258 . 163 213 179 171 10 191 317 166 44 40 . 218 88 70 . 146 . . . 255 . 3 Average Temperature 69 | . 68 39 60 42 12 94 . 47 50 50 86 7 86 131 61 27 16 . 42 42 14 . 78 . . . 93 . 2 Received Heat Transfer 2379 | . 438 270 405 300 . . . . 586 57 . . . 211 9 18 . . 18 . . . 9 . 6 . 52 . . Effects 3 | . . . . . . 1 . . . . . . . 2 . . . . . . . . . . . . . . . Energy Bleed 3 | . . . . . . 1 . . . . . . . 2 . . . . . . . . . . . . . . . Siege Activations . | . . . . . . . . . . . . . . . . . . . . . . . . . . . . . . Robots Corrupted . | . . . . . . . . . . . . . . . . . . . . . . . . . . . . . . Combat Hostiles . | . . . . . . . . . . . . . . . . . . . . . . . . . . . . . . Parts Fried 32 | . 19 . . . . . . . 1 . . . . 3 . . . . 7 . 2 . . . . . . . . Impact Corruptions 37 | . 18 . . 2 . . . . 2 . . . . 4 . . 6 . 4 . 1 . . . . . . . . Robots Melted 1 | . . . . . . . . . . . . . . 1 . . . . . . . . . . . . . . . Combat Hostiles 1 | . . . . . . . . . . . . . . 1 . . . . . . . . . . . . . . . Parts Melted 7 | . 1 . . 1 . . . . . . . . . 3 . . . . 2 . . . . . . . . . . Heat Transferred 2514 | . 407 259 . 525 . . . . . . . . 185 888 . . . . 250 . . . . . . . . . . Parts Sabotaged 2 | . . . . . . . . . 2 . . . . . . . . . . . . . . . . . . . . Parts Stolen . | . . . . . . . . . . . . . . . . . . . . . . . . . . . . . . Parts Stripped . | . . . . . . . . . . . . . . . . . . . . . . . . . . . . . . Power Chain Reactions . | . . . . . . . . . . . . . . . . . . . . . . . . . . . . . . Missiles Intercepted . | . . . . . . . . . . . . . . . . . . . . . . . . . . . . . . Alert | -11 -10 -9 -8 -7 -7 -7 -7 -6 -6 -6 -6 -6 -5 -5 -5 -5 -5 -4 -4 -4 -4 -4 -4 -4 -3 -3 -3 -2 -1 ------- Run | Scr Mat Mat Mat Fac Low Low Dat Pro Fac Low Low Zio Pro Fac Upp Upp Zhi Pro Fac Was Fac Upp Upp War Pro Res Tes Res Acc Peak Influence 778 | . 268 297 324 305 . . . . 603 . . . . 778 . . . . 205 101 168 . . . . 164 129 315 444 Initial 98 | . . 44 16 98 . . . . . . . . . 69 . . . . 50 71 70 . . . . 9 92 41 68 Average 173 | . 134 177 188 127 . . . . 378 . . . . 189 . . . . 104 85 102 . . . . 28 87 207 151 Maximum Alert Level 3 | . 1 1 1 1 . . . . 2 . . . . 3 . . . . 1 . . . . . . . . 1 2 Low Security (%) 66 | 100 69 61 47 73 . . . . 25 . . . . 74 . . . . 99 100 100 . . . . 100 100 42 85 Level 1 21 | . 30 38 52 26 . . . . 3 . . . . 5 . . . . . . . . . . . . . 57 9 Level 2 11 | . . . . . . . . . 70 . . . . 16 . . . . . . . . . . . . . . 4 Level 3 . | . . . . . . . . . . . . . . 3 . . . . . . . . . . . . . . . Level 4 . | . . . . . . . . . . . . . . . . . . . . . . . . . . . . . . Level 5 . | . . . . . . . . . . . . . . . . . . . . . . . . . . . . . . High Security . | . . . . . . . . . . . . . . . . . . . . . . . . . . . . . . Max Security . | . . . . . . . . . . . . . . . . . . . . . . . . . . . . . . Squads Dispatched 49 | . 4 1 4 11 . . . . 13 . . . . 6 . . . . 2 . 1 . . . . 1 2 1 3 Investigation 16 | . 3 1 3 1 . . . . 2 . . . . 2 . . . . 1 . 1 . . . . . . 1 1 Extermination 15 | . . . . 7 . . . . 4 . . . . 2 . . . . 1 . . . . . . . 1 . . Reinforcement 12 | . 1 . 1 3 . . . . 3 . . . . 2 . . . . . . . . . . . 1 1 . . Assault 4 | . . . . . . . . . 4 . . . . . . . . . . . . . . . . . . . . Garrison 2 | . . . . . . . . . . . . . . . . . . . . . . . . . . . . . 2 Intercept . | . . . . . . . . . . . . . . . . . . . . . . . . . . . . . . Searches Triggered 1 | . . . . . . . . . . . . . . 1 . . . . . . . . . . . . . . . Data Miner Redirects 4 | . . . . . . . . . 3 . . . . . . . . . . . 1 . . . . . . . . Construction Impeded 2 | . . . . 1 . . . . 1 . . . . . . . . . . . . . . . . . . . . Haulers Reinforced 1 | . . . . . . . . . 1 . . . . . . . . . . . . . . . . . . . . Active Scanning Responses . | . . . . . . . . . . . . . . . . . . . . . . . . . . . . . . Cargo Convoy Interrupts . | . . . . . . . . . . . . . . . . . . . . . . . . . . . . . . Stealth | -11 -10 -9 -8 -7 -7 -7 -7 -6 -6 -6 -6 -6 -5 -5 -5 -5 -5 -4 -4 -4 -4 -4 -4 -4 -3 -3 -3 -2 -1 --------- Run | Scr Mat Mat Mat Fac Low Low Dat Pro Fac Low Low Zio Pro Fac Upp Upp Zhi Pro Fac Was Fac Upp Upp War Pro Res Tes Res Acc Distress Signals 8 | . . 1 . . . . . . 2 . . . . 3 . . . . 1 . . . . . . . . . 1 Communications Jammed 14 | . . . . . . . . . . . . . . . . . . . . . . . . . . . . . 14 Distress Signals 14 | . . . . . . . . . . . . . . . . . . . . . . . . . . . . . 14 Times Spotted 360 | . 20 24 37 30 9 3 . 3 39 6 6 . 12 46 5 5 . 7 20 6 3 . 5 . 6 13 23 2 30 Peak Tracking Total 17 | . 3 7 7 4 8 3 . 3 5 4 6 . 5 11 5 5 . 4 9 6 1 . 5 . 5 8 10 3 17 Tactical Retreats 32 | . 1 1 2 2 . . . . 2 1 . . . 11 1 . . . 3 . . . . . 1 2 2 . 3 Traps | -11 -10 -9 -8 -7 -7 -7 -7 -6 -6 -6 -6 -6 -5 -5 -5 -5 -5 -4 -4 -4 -4 -4 -4 -4 -3 -3 -3 -2 -1 ------- Run | Scr Mat Mat Mat Fac Low Low Dat Pro Fac Low Low Zio Pro Fac Upp Upp Zhi Pro Fac Was Fac Upp Upp War Pro Res Tes Res Acc Traps Triggered 6 | . 2 . 1 1 . . . . . . . . . 1 . . . . 1 . . . . . . . . . . Indirectly . | . . . . . . . . . . . . . . . . . . . . . . . . . . . . . . Trap Hack Attempts . | . . . . . . . . . . . . . . . . . . . . . . . . . . . . . . Triggered . | . . . . . . . . . . . . . . . . . . . . . . . . . . . . . . Disarmed . | . . . . . . . . . . . . . . . . . . . . . . . . . . . . . . Reprogrammed . | . . . . . . . . . . . . . . . . . . . . . . . . . . . . . . Reused . | . . . . . . . . . . . . . . . . . . . . . . . . . . . . . . Traps Extracted . | . . . . . . . . . . . . . . . . . . . . . . . . . . . . . . Installed . | . . . . . . . . . . . . . . . . . . . . . . . . . . . . . . Triggered 21 | . . . . . . . . . . . . . . . . . . 3 . . . . . 18 . . . . . Machines | -11 -10 -9 -8 -7 -7 -7 -7 -6 -6 -6 -6 -6 -5 -5 -5 -5 -5 -4 -4 -4 -4 -4 -4 -4 -3 -3 -3 -2 -1 ---------- Run | Scr Mat Mat Mat Fac Low Low Dat Pro Fac Low Low Zio Pro Fac Upp Upp Zhi Pro Fac Was Fac Upp Upp War Pro Res Tes Res Acc Machines Disabled 18 | . . . 1 1 . . . . 4 . . . . 7 . . . . . . 2 . . . . . 1 . 2 Max in Single Turn 5 | . . . 1 1 . . . . 1 . . . . 5 . . . . . . 1 . . . . . 1 . 1 Garrison Access 3 | . . . . . . . . . 1 . . . . . . . . . . . . . . . . . . 2 . Machines Sabotaged . | . . . . . . . . . . . . . . . . . . . . . . . . . . . . . . Garrisons Compromised . | . . . . . . . . . . . . . . . . . . . . . . . . . . . . . . Overloaded Fab Kills . | . . . . . . . . . . . . . . . . . . . . . . . . . . . . . . Hacking | -11 -10 -9 -8 -7 -7 -7 -7 -6 -6 -6 -6 -6 -5 -5 -5 -5 -5 -4 -4 -4 -4 -4 -4 -4 -3 -3 -3 -2 -1 --------- Run | Scr Mat Mat Mat Fac Low Low Dat Pro Fac Low Low Zio Pro Fac Upp Upp Zhi Pro Fac Was Fac Upp Upp War Pro Res Tes Res Acc Machines Accessed 70 | . 3 5 8 7 1 . 4 . 4 . . . . 6 1 . 4 . 6 . 3 1 . 4 . 2 7 3 1 Terminals 35 | . 3 5 7 4 1 . . . 2 . . . . 2 . . . . 3 . 2 . . . . . 4 1 1 Fabricators 9 | . . . . 2 . . . . 1 . . . . 2 . . . . 1 . . . . . . 1 2 . . Repair Stations . | . . . . . . . . . . . . . . . . . . . . . . . . . . . . . . Recycling Units 10 | . . . 1 1 . . . . 1 . . . . 2 . . . . 2 . 1 . . . . 1 . 1 . Scanalyzers . | . . . . . . . . . . . . . . . . . . . . . . . . . . . . . . Garrison Access 2 | . . . . . . . . . . . . . . . . . . . . . . . . . . . 1 1 . Total Hacks 213 | . 8 13 22 25 1 . 27 . 7 . . . . 15 1 . 17 . 19 . 11 7 . 8 . 3 20 7 2 Successful 123 | . 2 7 11 15 1 . 27 . 2 . . . . 9 1 . 17 . 7 . 2 7 . 8 . . 5 2 . Failed 89 | . 6 6 10 10 . . . . 5 . . . . 6 . . . . 12 . 9 . . . . 3 15 5 2 Catastrophic 20 | . 2 . 1 4 . . . . 3 . . . . 2 . . . . 1 . 1 . . . . . 4 1 1 Database Lockouts 1 | . . . 1 . . . . . . . . . . . . . . . . . . . . . . . . . . Manual 79 | . 4 11 12 12 . . . . 6 . . . . 5 . . . . 9 . 5 . . 1 . 2 6 6 . Terminals 91 | . 8 13 19 11 1 . . . 3 . . . . 6 . . . . 6 . 9 . . . . . 11 2 2 Fabricators 28 | . . . . 9 . . . . 1 . . . . 5 . . . . 5 . . . . . . 1 7 . . Repair Stations . | . . . . . . . . . . . . . . . . . . . . . . . . . . . . . . Recycling Units 30 | . . . 3 5 . . . . 3 . . . . 4 . . . . 8 . 2 . . . . 2 . 3 . Scanalyzers . | . . . . . . . . . . . . . . . . . . . . . . . . . . . . . . Garrison Access 4 | . . . . . . . . . . . . . . . . . . . . . . . . . . . 2 2 . Terminal Hacks 83 | . 2 3 9 2 1 . 27 . . . . . . 3 1 . 17 . . . 2 7 . 8 . . 1 . . Record 30 | . . . . . 1 . 11 . . . . . . . . . 5 . . . . 7 . 6 . . . . . Part Schematic 14 | . . . 1 . . . 9 . . . . . . . . . 4 . . . . . . . . . . . . Robot Schematic 6 | . . . 2 . . . 4 . . . . . . . . . . . . . . . . . . . . . . Robot Analysis 4 | . . . . . . . . . . . . . . . . . 4 . . . . . . . . . . . . Prototype ID Bank 7 | . . . . . . . 3 . . . . . . . . . 4 . . . . . . . . . . . . Open Door 3 | . . . . . . . . . . . . . . . 1 . . . . . . . . 2 . . . . . Level Access Points 1 | . . . 1 . . . . . . . . . . . . . . . . . . . . . . . . . . Branch Access Points 4 | . 1 . 1 1 . . . . . . . . . 1 . . . . . . . . . . . . . . . Terminal Index 2 | . . 1 . . . . . . . . . . . . . . . . . . 1 . . . . . . . . Recycling Unit Index 1 | . . . . 1 . . . . . . . . . . . . . . . . . . . . . . . . . Alert Level 5 | . . 1 2 . . . . . . . . . . . . . . . . . 1 . . . . . 1 . . Unreport Threat 3 | . . 1 2 . . . . . . . . . . . . . . . . . . . . . . . . . . Locate Traps 2 | . 1 . . . . . . . . . . . . 1 . . . . . . . . . . . . . . . Surveillance Status 1 | . . . . . . . . . . . . . . 1 . . . . . . . . . . . . . . . Fabricator Hacks 16 | . . . . 9 . . . . . . . . . 4 . . . . 1 . . . . . . . 2 . . Network Status 1 | . . . . 1 . . . . . . . . . . . . . . . . . . . . . . . . . Load Schematic 8 | . . . . 4 . . . . . . . . . 2 . . . . . . . . . . . . 2 . . Build 7 | . . . . 4 . . . . . . . . . 2 . . . . 1 . . . . . . . . . . Repair Station Hacks . | . . . . . . . . . . . . . . . . . . . . . . . . . . . . . . Recycling Unit Hacks 5 | . . . 1 1 . . . . . . . . . . . . . . 3 . . . . . . . . . . Report Inventory 1 | . . . . . . . . . . . . . . . . . . . 1 . . . . . . . . . . Retrieve Matter 1 | . . . . 1 . . . . . . . . . . . . . . . . . . . . . . . . . Retrieve Components 3 | . . . 1 . . . . . . . . . . . . . . . 2 . . . . . . . . . . Scanalyzer . | . . . . . . . . . . . . . . . . . . . . . . . . . . . . . . Garrison Access Hacks . | . . . . . . . . . . . . . . . . . . . . . . . . . . . . . . Unauthorized Hacks 19 | . . 4 1 3 . . . . 2 . . . . 2 . . . . 3 . . . . . . . 2 2 . Terminals 7 | . . 4 . . . . . . . . . . . . . . . . . . . . . . . . 2 1 . Assimilate 2 | . . . . . . . . . . . . . . . . . . . . . . . . . . . 1 1 . Botnet 4 | . . 3 . . . . . . . . . . . . . . . . . . . . . . . . 1 . . Disrupt 1 | . . 1 . . . . . . . . . . . . . . . . . . . . . . . . . . . Fabricators 3 | . . . . . . . . . 1 . . . . 1 . . . . 1 . . . . . . . . . . Liberate 2 | . . . . . . . . . . . . . . 1 . . . . 1 . . . . . . . . . . Recompile 1 | . . . . . . . . . 1 . . . . . . . . . . . . . . . . . . . . Repair Stations . | . . . . . . . . . . . . . . . . . . . . . . . . . . . . . . Recycling Units 8 | . . . 1 3 . . . . 1 . . . . 1 . . . . 2 . . . . . . . . . . Monitor 1 | . . . . 1 . . . . . . . . . . . . . . . . . . . . . . . . . Reject 3 | . . . 1 1 . . . . . . . . . . . . . . 1 . . . . . . . . . . Mask 4 | . . . . 1 . . . . 1 . . . . 1 . . . . 1 . . . . . . . . . . Scanalyzers . | . . . . . . . . . . . . . . . . . . . . . . . . . . . . . . Garrison Access 1 | . . . . . . . . . . . . . . . . . . . . . . . . . . . . 1 . Jam 1 | . . . . . . . . . . . . . . . . . . . . . . . . . . . . 1 . Data Cores Recovered . | . . . . . . . . . . . . . . . . . . . . . . . . . . . . . . Used . | . . . . . . . . . . . . . . . . . . . . . . . . . . . . . . Hacking Detections 48 | . 3 4 7 4 . . . . 3 . . . . 5 . . . . 6 . 3 . . . . 2 7 3 1 Full Trace Events 15 | . 2 2 4 1 . . . . 1 . . . . 2 . . . . 1 . 1 . . . . . . . 1 Feedback Events 1 | . . 1 . . . . . . . . . . . . . . . . . . . . . . . . . . . Corruption 1 | . . 1 . . . . . . . . . . . . . . . . . . . . . . . . . . . Feedback Blocked . | . . . . . . . . . . . . . . . . . . . . . . . . . . . . . . Robot Schematics Acquired 12 | . . . 2 . . . 4 . . . . 4 . . . . . . . . . . . . . . 2 . . Robots Built 6 | . . . . 6 . . . . . . . . . . . . . . . . . . . . . . . . . Authchips 2 | . . . . 2 . . . . . . . . . . . . . . . . . . . . . . . . . Time 232 | . . . . 232 . . . . . . . . . . . . . . . . . . . . . . . . . Total Robot Build Rating 18 | . . . . 18 . . . . . . . . . . . . . . . . . . . . . . . . . Part Schematics Acquired 29 | . . . 1 . . . 9 . . . . 15 . . . . 4 . . . . . . . . . . . . Parts Built 6 | . . . . 2 . . . . . . . . . 3 . . . . 1 . . . . . . . . . . Authchips 3 | . . . . 2 . . . . . . . . . 1 . . . . . . . . . . . . . . . Time 450 | . . . . 146 . . . . . . . . . 187 . . . . 117 . . . . . . . . . . Total Part Build Rating 30 | . . . . 6 . . . . . . . . . 17 . . . . 7 . . . . . . . . . . Parts Repaired . | . . . . . . . . . . . . . . . . . . . . . . . . . . . . . . Time . | . . . . . . . . . . . . . . . . . . . . . . . . . . . . . . Parts Recycled . | . . . . . . . . . . . . . . . . . . . . . . . . . . . . . . Recycled Matter . | . . . . . . . . . . . . . . . . . . . . . . . . . . . . . . Retrieved Matter . | . . . . . . . . . . . . . . . . . . . . . . . . . . . . . . Retrieved Components 13 | . . . 9 . . . . . . . . . . . . . . . 4 . . . . . . . . . . Parts Scanalyzed . | . . . . . . . . . . . . . . . . . . . . . . . . . . . . . . Part Schematics Acquired . | . . . . . . . . . . . . . . . . . . . . . . . . . . . . . . Parts Damaged . | . . . . . . . . . . . . . . . . . . . . . . . . . . . . . . Bothacking | -11 -10 -9 -8 -7 -7 -7 -7 -6 -6 -6 -6 -6 -5 -5 -5 -5 -5 -4 -4 -4 -4 -4 -4 -4 -3 -3 -3 -2 -1 ------------ Run | Scr Mat Mat Mat Fac Low Low Dat Pro Fac Low Low Zio Pro Fac Upp Upp Zhi Pro Fac Was Fac Upp Upp War Pro Res Tes Res Acc Used RIF Installer . | . . . . . . . . . . . . . . . . . . . . . . . . . . . . . . Robots Hacked . | . . . . . . . . . . . . . . . . . . . . . . . . . . . . . . Non-combat . | . . . . . . . . . . . . . . . . . . . . . . . . . . . . . . Combat . | . . . . . . . . . . . . . . . . . . . . . . . . . . . . . . Robot Hacks Applied . | . . . . . . . . . . . . . . . . . . . . . . . . . . . . . . Relay Couplers Released 5 | . . . . . . . . . 3 . . . . . . . . . . . . . . . . . . 2 . Machine Destruction 5 | . . . . . . . . . 3 . . . . . . . . . . . . . . . . . . 2 . Fabnet Peak Effective % . | . . . . . . . . . . . . . . . . . . . . . . . . . . . . . . Robots Rewired 5 | . . . . . . . . . 2 . . . . . . . . . . . . . . 3 . . . . . Allies Hacked 1 | . . . . 1 . . . . . . . . . . . . . . . . . . . . . . . . . Hacks Repelled . | . . . . . . . . . . . . . . . . . . . . . . . . . . . . . . Allies | -11 -10 -9 -8 -7 -7 -7 -7 -6 -6 -6 -6 -6 -5 -5 -5 -5 -5 -4 -4 -4 -4 -4 -4 -4 -3 -3 -3 -2 -1 -------- Run | Scr Mat Mat Mat Fac Low Low Dat Pro Fac Low Low Zio Pro Fac Upp Upp Zhi Pro Fac Was Fac Upp Upp War Pro Res Tes Res Acc Total Allies 20 | . . . . 6 . . . 1 2 . . . . 3 . . . . . . . . . 3 . . 1 1 3 Largest Group 6 | . . . . 6 . . . 1 3 . . . . 3 . . . . . . . . . 3 2 . 1 1 3 Highest-Rated Group 374 | . . . . 150 . . . 96 128 . . . . 87 . . . . . . . . . 173 124 . 10 45 374 Highest-Rated Ally 131 | . . . . 25 . . . 96 96 . . . . 29 . . . . . . . . . 68 68 . 10 45 131 Total Orders 5 | . . . . . . . . . . . . . . . . . . 5 . . . . . . . . . . . EXPLORE 5 | . . . . . . . . . . . . . . . . . . 5 . . . . . . . . . . . Ally Attacks 119 | . . . . 37 . . . . 49 . . . . 20 . . . . . . . . . 1 7 . . . 5 Total Damage 2967 | . . . . 736 . . . . 1314 . . . . 283 . . . . . . . . . 146 336 . . . 152 Kills 18 | . . . . 7 . . . . 9 . . . . 1 . . . . . . . . . 1 . . . . . Allies Corrupted . | . . . . . . . . . . . . . . . . . . . . . . . . . . . . . . Allies Melted 1 | . . . . . . . . . . . . . . . . . . . . . . . . . . . . 1 . Intel | -11 -10 -9 -8 -7 -7 -7 -7 -6 -6 -6 -6 -6 -5 -5 -5 -5 -5 -4 -4 -4 -4 -4 -4 -4 -3 -3 -3 -2 -1 ------- Run | Scr Mat Mat Mat Fac Low Low Dat Pro Fac Low Low Zio Pro Fac Upp Upp Zhi Pro Fac Was Fac Upp Upp War Pro Res Tes Res Acc Robot Analysis Total 4 | . . . . . . . . . . . . . . . . . 4 . . . . . . . . . . . . Derelict Logs Recovered 13 | . . . . . . . . 2 . 1 1 2 2 . . . . 2 . . . 1 2 . . . . . . Drone Launches 5 | . . . . . . . . . . . . . . . . . . 5 . . . . . . . . . . . Drone Recoveries 4 | . . . . . . . . . . . . . . . . . . 4 . . . . . . . . . . . Exploration | -11 -10 -9 -8 -7 -7 -7 -7 -6 -6 -6 -6 -6 -5 -5 -5 -5 -5 -4 -4 -4 -4 -4 -4 -4 -3 -3 -3 -2 -1 ------------- Run | Scr Mat Mat Mat Fac Low Low Dat Pro Fac Low Low Zio Pro Fac Upp Upp Zhi Pro Fac Was Fac Upp Upp War Pro Res Tes Res Acc Turns Passed 23096 | 54 1227 860 1434 4507 501 269 107 482 1959 792 438 2426 1304 1416 478 237 118 364 752 47 322 192 104 646 402 465 562 445 186 Spaces Moved 18470 | 50 612 384 842 2978 406 211 92 383 1069 475 193 935 562 1141 521 196 175 301 1160 123 519 441 262 927 696 506 728 1099 483 Core 8 | 8 . . . . . . . . . . . . . . . . . . . . . . . . . . . . . Treads 836 | . . . . 244 . . . . . . 106 319 167 . . . . . . . . . . . . . . . . Legs 2543 | . 553 384 842 764 . . . . . . . . . . . . . . . . . . . . . . . . . Wheels 4547 | 42 59 . . 1723 406 211 92 383 1069 475 87 . . . . . . . . . . . . . . . . . . Hover 10332 | . . . . 43 . . . . . . . 616 395 1141 521 196 175 301 1160 123 519 441 262 927 696 506 728 1099 483 Flight 204 | . . . . 204 . . . . . . . . . . . . . . . . . . . . . . . . . Fastest Speed 15 | 50 80 120 120 26 115 115 115 115 115 145 160 240 192 48 50 50 35 35 30 30 22 22 34 32 34 15 16 33 16 Average Speed 96 | 83 153 147 128 118 115 115 115 120 146 159 214 246 219 77 71 55 44 87 38 37 37 33 34 35 34 29 30 35 28 Slowest Speed 320 | 100 260 190 190 284 115 115 115 130 175 160 320 276 316 192 105 105 106 92 96 40 40 34 34 92 34 31 88 88 33 Overloaded Moves 382 | . . . . . . . . . . . . . . . . . . . 18 28 16 6 . . . 54 94 . 166 Propulsion Burnouts . | . . . . . . . . . . . . . . . . . . . . . . . . . . . . . . Robots Hopped . | . . . . . . . . . . . . . . . . . . . . . . . . . . . . . . Cave-ins Triggered . | . . . . . . . . . . . . . . . . . . . . . . . . . . . . . . Teleports 1 | . . . . . . . . . . . . . . . . . . . . . . . . . . . 1 . . Exploration Rate (%) 50 | 2 50 34 42 25 67 42 70 70 18 61 45 88 72 25 76 39 63 80 19 98 14 68 56 97 69 9 77 27 15 Regions Visited 29 Branch Regions 17 Pre-discovered Areas 9 | . . . . . . . 1 . . . . 2 1 . . . 3 . . . . 1 1 . . . . . . Known Exits Taken 22 | . . . 1 1 1 1 1 1 1 1 1 1 1 1 1 . . 1 . . 1 1 1 1 1 1 1 1 . Unknown Exits Taken 5 | 1 1 1 . . . . . . . . . . . . . 1 1 . . . . . . . . . . . . Scrap Searched 21 | . . . . . 2 1 . . . 1 2 2 4 . . 2 . 1 . . . 2 2 . 2 . . . . Spaces Dug 74 | . 1 . . 1 5 22 . 1 6 3 . . . 4 . 1 . . 11 . 8 1 1 . . 3 3 1 2 Terrain Destroyed 760 | . 1 . . 25 25 61 . 39 89 54 188 1 67 52 37 38 . 51 13 . 8 1 1 . . 3 3 1 2 Melee 34 | . 1 . . 1 . . . . . . . . . 4 . 1 . . 9 . 7 1 1 . . 3 3 1 2 Projectile 90 | . . . . 14 8 3 . 3 38 4 . 1 5 9 . . . . 4 . 1 . . . . . . . . AOE 636 | . . . . 10 17 58 . 36 51 50 188 . 62 39 37 37 . 51 . . . . . . . . . . . Terrain Rammed . | . . . . . . . . . . . . . . . . . . . . . . . . . . . . . . Walls Destroyed . | . . . . . . . . . . . . . . . . . . . . . . . . . . . . . . Machines Disabled . | . . . . . . . . . . . . . . . . . . . . . . . . . . . . . . Actions | -11 -10 -9 -8 -7 -7 -7 -7 -6 -6 -6 -6 -6 -5 -5 -5 -5 -5 -4 -4 -4 -4 -4 -4 -4 -3 -3 -3 -2 -1 --------- Run | Scr Mat Mat Mat Fac Low Low Dat Pro Fac Low Low Zio Pro Fac Upp Upp Zhi Pro Fac Was Fac Upp Upp War Pro Res Tes Res Acc Total 22810 | 59 761 588 1068 3808 422 226 93 397 1303 493 210 1056 611 1601 626 317 206 397 1427 122 626 481 273 1248 855 811 1055 1148 522 Wait 2746 | 3 21 79 53 473 1 . . . 55 . . 99 12 333 96 108 . 93 190 . 85 36 1 248 152 285 281 10 32 Move 18441 | 49 611 383 841 2977 405 210 91 382 1068 474 192 934 561 1140 520 195 174 300 1160 122 518 440 261 926 695 505 727 1098 482 Hop . | . . . . . . . . . . . . . . . . . . . . . . . . . . . . . . Pick Up 242 | 1 22 18 15 91 . 3 . 3 17 4 3 5 3 15 3 2 5 . 12 . 1 . . 8 1 2 3 5 . Fast Attach 154 | 5 4 9 11 35 1 . 1 . 4 1 2 5 6 10 . 3 7 . 7 . 1 2 5 12 . 3 11 9 . Attach 110 | 1 4 6 2 19 1 3 . 4 19 4 6 3 2 11 2 2 1 . 6 . . . 1 4 . 2 3 3 1 Detach 23 | . . . . 4 1 . . . 6 . 1 . 1 . 2 2 . . 3 . . . . 3 . . . . . Swap 120 | . 9 4 13 26 1 . . 1 2 . . . 6 14 1 2 4 3 11 . 7 . . 4 . 1 7 4 . Drop 276 | . 8 17 24 84 1 3 1 3 6 3 4 8 7 20 1 1 11 . 13 . 4 2 4 20 1 3 14 13 . Fire 472 | . 17 72 107 73 11 7 . 4 104 7 2 1 13 37 1 1 . 1 10 . 1 . . . . . 3 . . Melee 174 | . 65 . . 19 . . . . 4 . . . . 21 . 1 4 . 15 . 9 1 1 . 6 10 5 6 7 Ram 2 | . . . . 1 . . . . 1 . . . . . . . . . . . . . . . . . . . . Kick 3 | . . . 2 1 . . . . . . . . . . . . . . . . . . . . . . . . . Crush . | . . . . . . . . . . . . . . . . . . . . . . . . . . . . . . Escape Stasis 6 | . . . . 5 . . . . . . . . . . . . . . . . . . . . . . 1 . . Rewire 41 | . . . . . . . . . 17 . . 1 . . . . . . . . . . . 23 . . . . . Trap . | . . . . . . . . . . . . . . . . . . . . . . . . . . . . . . Miscellaneous . | . . . . . . . . . . . . . . . . . . . . . . . . . . . . . . Route ------- -11/Scrapyard -10/Materials (discovered 2 exits: *Mat / Min) -9/Materials (discovered 2 exits: *Mat / [*Sto]) -8/Materials (discovered 3 exits: *Fac x3) -7/Factory (discovered 2 exits: *Low x2) -7/Lower Caves -7/Lower Caves (discovered 2 exits: *Fac / *Dat) -7/Data Miner -6/Proximity Caves -6/Factory (discovered 2 exits: *Fac / *Low) -6/Lower Caves -6/Lower Caves -6/Zion (discovered 2 exits: [Dee] / *Pro) -5/Proximity Caves -5/Factory (discovered 6 exits: *Fac x2 / *Upp x2 / Ext x2) -5/Upper Caves -5/Upper Caves -5/Zhirov -4/Proximity Caves -4/Factory -4/Waste -4/Factory -4/Upper Caves -4/Upper Caves -4/Warlord -3/Proximity Caves -3/Research (discovered 3 exits: *Res / *Tes x2) -3/Testing -2/Research (discovered 2 exits: *Acc / Qua) -1/Access (discovered 2 exits: *Sur / Com) To Epsilon Eridani History --------- Turn | Location | Event 15 | -11/Scrapyard | Discovered new exit (range 15) 55 | -11/Scrapyard | Entered Materials 302 | -10/Materials | Build established: Mutant 543 | -10/Materials | Core integrity fell below 50% 689 | -10/Materials | Discovered new exit (range 4) 796 | -10/Materials | Identified exit to Mines 1025 | -10/Materials | Core integrity fell below 20% 1282 | -10/Materials | Entered another Materials area 1282 | -9/Materials | Evolved 2 slots: Propulsion x2 1382 | -9/Materials | Lost 5 parts (2p2n1w) 1385 | -9/Materials | Destroyed 9 combat bots 1776 | -9/Materials | Build established: Scavenger-Mutant 1793 | -9/Materials | Discovered new exit (range 11) 1933 | -9/Materials | Discovered new exit (range 16) 2142 | -9/Materials | Entered another Materials area 2142 | -8/Materials | Evolved 2 slots: Utility x2 2736 | -8/Materials | Destroyed 7 combat bots 2757 | -8/Materials | Identified exit to Factory 3531 | -8/Materials | Central database locked down 3576 | -8/Materials | Entered Factory 3576 | -7/Factory | Evolved 2 slots: Utility x2 4378 | -7/Factory | Lost 3 parts (2n1u) 4652 | -7/Factory | Build established: Mutant 4860 | -7/Factory | Lost 3 parts (1p2u) 5283 | -7/Factory | Build established: Scavenger-Mutant 5384 | -7/Factory | Fabricated C-17 Slicer (x3) 5507 | -7/Factory | Fabricated C-17 Slicer (x3) 5860 | -7/Factory | Fabricated Hvy. Assault Cannon (x1) 5904 | -7/Factory | Build established: Commander-Mutant 5938 | -7/Factory | Fabricated Hvy. Assault Cannon? 6136 | -7/Factory | Discovered new exit (range 16) 6232 | -7/Factory | Build established: Mutant 6959 | -7/Factory | Found Prototype Launcher 6959 | -7/Factory | Identified Rocket Array 6967 | -7/Factory | Found Rocket Array 6970 | -7/Factory | Found Rocket Array 6982 | -7/Factory | Identified exit to Lower Caves 8083 | -7/Factory | Entered Lower Caves 8173 | -7/Lower Caves | Destroyed 8 combat bots 8458 | -7/Lower Caves | Build established: Skirmisher 8558 | -7/Lower Caves | Discovered new exit (range 9) 8576 | -7/Lower Caves | Identified exit to Lower Caves 8584 | -7/Lower Caves | Entered another Lower Caves area 8595 | -7/Lower Caves | Discovered new exit (range 11) 8605 | -7/Lower Caves | Identified exit to Factory 8836 | -7/Lower Caves | Discovered new exit (range 14) 8850 | -7/Lower Caves | Identified exit to Data Miner 8853 | -7/Lower Caves | Entered Data Miner 8854 | -7/Data Miner | Discovered new exit (range 6) 8876 | -7/Data Miner | Met Data Miner 8900 | -7/Data Miner | Learned location of Section 7 (-2) 8900 | -7/Data Miner | Acquired the access code to Warlord's prototype stash 8920 | -7/Data Miner | Received God Mode back door access code from Data Miner 8959 | -7/Data Miner | Identified exit to Proximity Caves 8960 | -7/Data Miner | Entered Proximity Caves 9023 | -6/Proximity Caves | Learned Factory security intel 9034 | -6/Proximity Caves | Learned Factory terminal intel 9196 | -6/Proximity Caves | Escorted by Enhanced Grunt 9437 | -6/Proximity Caves | Discovered exit to Factory (range 5) 9442 | -6/Proximity Caves | Entered Factory 9442 | -6/Factory | Accompanied by 1 ally 9442 | -6/Factory | Evolved 2 slots: Utility x2 9444 | -6/Factory | Loaded intel: 25 terminal locations 9483 | -6/Factory | Build established: Mutant 9816 | -6/Factory | Discovered new exit (range 4) 9820 | -6/Factory | Identified exit to Factory 9821 | -6/Factory | Discovered new exit (range 8) 9832 | -6/Factory | Identified exit to Lower Caves 10059 | -6/Factory | Found Scatter Rocket Array 10061 | -6/Factory | Found Scatter Rocket Array 10065 | -6/Factory | Found Scatter Rocket Array 10142 | -6/Factory | First assault squad dispatched 10159 | -6/Factory | Incoming assault squad redirected 10347 | -6/Factory | Lost 4 parts (1n1u2w) 11212 | -6/Factory | Incoming assault squad redirected 11216 | -6/Factory | Incoming assault squad redirected 11401 | -6/Factory | Entered Lower Caves 11498 | -6/Lower Caves | Spotted B-75 Beast 11532 | -6/Lower Caves | Learned location of 1 exit from Factory 12183 | -6/Lower Caves | Discovered new exit (range 7) 12191 | -6/Lower Caves | Identified exit to Lower Caves 12193 | -6/Lower Caves | Entered another Lower Caves area 12334 | -6/Lower Caves | Attacked by a faux Warlord 12373 | -6/Lower Caves | Lost 5 parts (1p2n1u1w) 12514 | -6/Lower Caves | Learned Factory terminal intel 12607 | -6/Lower Caves | Discovered new exit (range 10) 12629 | -6/Lower Caves | Identified exit to Zion 12631 | -6/Lower Caves | Entered Zion 12778 | -6/Zion | System corruption cleaned by Quarantine Array 13352 | -6/Zion | Found Prototype Processor 13352 | -6/Zion | Identified Exp. Core Analyzer 13463 | -6/Zion | Found CR-A16's Pointy Stick 13655 | -6/Zion | Build established: Skirmisher 13793 | -6/Zion | Discovered new exit (range 19) 14029 | -6/Zion | Learned location of Armory (-3) 14745 | -6/Zion | Discovered new exit (range 23) 15042 | -6/Zion | Identified exit to Proximity Caves 15057 | -6/Zion | Entered Proximity Caves 15578 | -5/Proximity Caves | Build established: Derelict-Mutant 15852 | -5/Proximity Caves | Learned location of 1 exit from Upper Caves 16300 | -5/Proximity Caves | Discovered exit to Factory (range 19) 16361 | -5/Proximity Caves | Entered Factory 16361 | -5/Factory | Evolved 2 slots: Power x1, Utility x1 16362 | -5/Factory | Identified exit to Extension 16363 | -5/Factory | Identified exit to Factory 16364 | -5/Factory | Loaded intel: 28 terminal locations 16678 | -5/Factory | Build established: Mutant 16749 | -5/Factory | Fabricated Gyrokinetic Inverter (x2) 16974 | -5/Factory | Fabricated Lgt. Regenerative Plating (x1) 17319 | -5/Factory | Discovered exit to Factory (range 19) 17543 | -5/Factory | Identified exit to Upper Caves 17561 | -5/Factory | Search patrols dispatched 17777 | -5/Factory | Entered Upper Caves 17778 | -5/Upper Caves | Identified exit to Upper Caves 17927 | -5/Upper Caves | Attracted the attention of an 0b10 checkpoint 18255 | -5/Upper Caves | Entered another Upper Caves area 18479 | -5/Upper Caves | Discovered new exit (range 4) 18492 | -5/Upper Caves | Entered Zhirov 18492 | -5/Zhirov | Discovered new exit (range 3) 18502 | -5/Zhirov | Met Zhirov 18511 | -5/Zhirov | Learned location of Quarantine (-2) 18511 | -5/Zhirov | Learned location of Testing (-3) 18511 | -5/Zhirov | Learned location of Command (-1) 18520 | -5/Zhirov | Zhirov requested help retrieving the SGEMP Prototype 18529 | -5/Zhirov | Found Alien Artifact 18529 | -5/Zhirov | Identified Integrated Reactor 18529 | -5/Zhirov | Installed Integrated Reactor, increased core energy generation (+10) 18539 | -5/Zhirov | Found Alien Artifact 18610 | -5/Zhirov | Entered Proximity Caves 18677 | -4/Proximity Caves | Learned Research garrison access intel 18940 | -4/Proximity Caves | Discovered exit to Factory (range 30) 18974 | -4/Proximity Caves | Entered Factory 18974 | -4/Factory | Evolved 2 slots: Propulsion x1, Utility x1 19285 | -4/Factory | Fabricated Imp. Phase Shifter? 19433 | -4/Factory | Build established: Scout 19726 | -4/Factory | Sucked down chute 19726 | -4/Factory | Entered Waste 19739 | -4/Waste | Spotted C-40 Crusher 19741 | -4/Waste | EMP discharged 19741 | -4/Waste | Spotted C-40 Crusher 19753 | -4/Waste | Spotted C-40 Crusher 19756 | -4/Waste | Spotted C-40 Crusher 19758 | -4/Waste | Spotted C-40 Crusher 19767 | -4/Waste | Spotted C-40 Crusher 19769 | -4/Waste | Discovered new exit (range 10) 19772 | -4/Waste | Identified exit to Factory 19773 | -4/Waste | Entered Factory 20066 | -4/Factory | Incoming investigation squad redirected 20086 | -4/Factory | Discovered new exit (range 8) 20088 | -4/Factory | Identified exit to Upper Caves 20095 | -4/Factory | Entered Upper Caves 20163 | -4/Upper Caves | Learned Factory stockpile data 20163 | -4/Upper Caves | Learned Extension stockpile data 20163 | -4/Upper Caves | Learned Extension security intel 20163 | -4/Upper Caves | Learned Research terminal intel 20163 | -4/Upper Caves | Learned Armory terminal intel 20163 | -4/Upper Caves | Learned Armory garrison access intel 20193 | -4/Upper Caves | Learned 12 Research zone layouts 20226 | -4/Upper Caves | Encountered a Warlord checkpoint 20279 | -4/Upper Caves | Discovered new exit (range 13) 20285 | -4/Upper Caves | Identified exit to Upper Caves 20287 | -4/Upper Caves | Entered another Upper Caves area 20303 | -4/Upper Caves | Spotted B-86 Titan 20311 | -4/Upper Caves | Identified exit to Warlord 20360 | -4/Upper Caves | Found Alien Artifact 20360 | -4/Upper Caves | Identified Core Expander 20360 | -4/Upper Caves | Installed Core Expander, added new Utility slot 20390 | -4/Upper Caves | Attracted the attention of an 0b10 checkpoint 20391 | -4/Upper Caves | Entered Warlord 20405 | -4/Warlord | System corruption cleaned by Quarantine Array 20452 | -4/Warlord | Received a Watcher feed algorithm from an ecstatic Tinkerer 20587 | -4/Warlord | Visited the Vortex Lab 20589 | -4/Warlord | Found Prototype Energy Gun 20589 | -4/Warlord | Identified Vortex Shotgun 20592 | -4/Warlord | Found Prototype Piercing Weapon 20592 | -4/Warlord | Identified Vortex Lance 20595 | -4/Warlord | Found Vortex Lance 20597 | -4/Warlord | Found Prototype Launcher 20599 | -4/Warlord | Identified Vortex Catalyst Activator 20608 | -4/Warlord | Warlord's base attacked by MAIN.C 20616 | -4/Warlord | Found Vortex Shotgun 20637 | -4/Warlord | Build established: Infiltrator-Ninja 20667 | -4/Warlord | Met Warlord 20670 | -4/Warlord | Opened Warlord's prototype stash 20672 | -4/Warlord | Found Prototype Device 20672 | -4/Warlord | Identified Exp. Focal Shield 20674 | -4/Warlord | Found Prototype Processor 20674 | -4/Warlord | Identified Spectral Analyzer 20677 | -4/Warlord | Found Prototype Hackware 20677 | -4/Warlord | Identified Ghost Barrier 20685 | -4/Warlord | Found Prototype Reactor 20685 | -4/Warlord | Identified Vortex Chain Reactor 20914 | -4/Warlord | Opened side exit 20958 | -4/Warlord | Warlord forces counterattacked 20962 | -4/Warlord | Build established: Hacker-Ninja 20989 | -4/Warlord | Discovered new exit (range 14) 21001 | -4/Warlord | Identified exit to Proximity Caves 21037 | -4/Warlord | Entered Proximity Caves 21037 | -3/Proximity Caves | Accompanied by 2 allies 21427 | -3/Proximity Caves | Attracted the attention of an 0b10 checkpoint 21432 | -3/Proximity Caves | Discovered new exit (range 11) 21435 | -3/Proximity Caves | Identified exit to Research 21439 | -3/Proximity Caves | Entered Research 21439 | -3/Research | Evolved 2 slots: Propulsion x1, Utility x1 21440 | -3/Research | Identified exit to Testing 21441 | -3/Research | Loaded intel: 24 terminal locations 21442 | -3/Research | Loaded intel: 3 garrison access locations 21448 | -3/Research | Discovered new exit (range 6) 21450 | -3/Research | Identified exit to Research 21560 | -3/Research | Found Prototype Processor 21560 | -3/Research | Identified Exp. Targeting Computer 21879 | -3/Research | Discovered exit to Testing (range 23) 21904 | -3/Research | Entered Testing 22017 | -3/Testing | Found Prototype Device 22017 | -3/Testing | Identified Exp. Shield Generator 22020 | -3/Testing | Found Prototype Device 22020 | -3/Testing | Identified Exp. EM Disruption Field 22073 | -3/Testing | Spotted Striker 22073 | -3/Testing | Spotted Striker 22087 | -3/Testing | Found Prototype Hackware 22087 | -3/Testing | Identified Exp. Hacking Suite 22097 | -3/Testing | Spotted Alpha 7 22097 | -3/Testing | Stole the SGEMP Prototype 22098 | -3/Testing | Identified Transdimensional Reconstructor 22098 | -3/Testing | Warped through subspace 22123 | -3/Testing | Found Prototype Device 22123 | -3/Testing | Identified Exp. Sensor Array 22440 | -3/Testing | Scanned by Researcher 22459 | -3/Testing | Discovered exit to Research (range 16) 22466 | -3/Testing | Entered Research 22466 | -2/Research | Warlord forces began assault on 0b10 22466 | -2/Research | Evolved 2 slots: Utility x2 22467 | -2/Research | Identified exit to Quarantine 22493 | -2/Research | Lost 3 parts (1p1n1u) 22541 | -2/Research | Spotted B-90 Cyclops 22572 | -2/Research | Spotted B-90 Cyclops 22576 | -2/Research | Research machine network offline 22650 | -2/Research | Met up with Warlord 22710 | -2/Research | Discovered new exit (range 16) 22717 | -2/Research | Identified exit to Access 22775 | -2/Research | Build established: Infiltrator-Ninja 22849 | -2/Research | Found Prototype Processor 22849 | -2/Research | Identified Exp. Terrain Scan Processor 22911 | -2/Research | Entered Access 22911 | -1/Access | Evolved 2 slots: Utility x2 22912 | -1/Access | Loaded intel: 111 machine locations 22912 | -1/Access | Loaded intel: 65 trap records 22912 | -1/Access | Identified exit to Surface 22912 | -1/Access | Discovered exit to Surface (range 82) 22912 | -1/Access | Identified exit to Command 22912 | -1/Access | Discovered exit to Command (range 100) 22912 | -1/Access | Delivered the SGEMP Prototype to Zhirov 22912 | -1/Access | Zhirov transferred Access data 22941 | -1/Access | Garrison activated, responded to threat 23097 | *** | Escaped! Last Messages --------------- 23087_ Slug penetrates H-88 Terminator. 23087_ Slug penetrates K-01 Serf. 23087_ K-01 Serf destroyed. 23087_ Penetrated by Slug. 23089_ Connecting with Terminal... 23090_ Penetrated by Slug. 23090_ Slug penetrates Terminal. 23090_ Slug penetrates Wall. 23090_ H-88 Terminator suffers critical hit (Destroy). 23090_ H-88 Terminator destroyed. 23090_ Penetrated by Slug. 23090_ K-01 Serf collects debris. 23092_ Connecting with Terminal... 23092_ ALERT: Suspicious activity at Terminal A001. Dispatching Investigation squad. 23092_ Sealed Barrier breached. 23093_ Penetrated by Slug. 23093_ K-01 Serf collects debris. 23094_ Main Access Shell breached. 23096_ Slug penetrates Sealed Barrier. Map ----- +----------------------------------------------------+ | # ## #######"" # ##### ########## | | # ## #######"" + ##### ########## | | # ##+#######"" # ##### ########## | | # # #"" # ##### ########## | | + # #"T + #### | | # + " #"" ############# #### | | # # """ #"" ############# #### | | # + """ #"" ############# #### | | # # " #"" ############# #### | | # # #" ## # | | # # # ## # | | ########### #* # ## " # | | ###########= ########## ## """ + | | ###########%*##################### """ # ## | | ###########= ##################### " # ## | | ########### ##################### # ## | | ########### ##################### # ## | | ########### ############################### ## | | ########### ############################### ## | | ########### #######"####################### ## | | ########## """T"""" """" ### ## | | ########## """ """" """" ### ## | | ########## """""" """" ### ## | | ########## " " " """" ## | | ########## " " "" " """" ## | | "########## " @" " """" ## | | "########## " " " """" ## | | "########## = " """""" """" ######### | | "########## =%! " """" ######### | | "########## [ " """" ######### | | "########## #######"############################# | | "########## ##################################### | | "########## ##################################### | | "# # ############# """"""" ############# | | "# # ############# """Y""" ############# | | "# + ############# ############# | | # # ############# ############# | | # # ############# ! ############# | | ## # ############# ############# | | ## # ############# ############# | | ## # ####################+#### ###### | | ## # ###### | | ########### ###### | | # ###### | | # ###### | | # #################+####### ###### | | # ############## #### ######## | | # ############## #### ######## | | # ############## #### ######## | | + ############## #### ######## | +----------------------------------------------------+ Best States ------------- Heat Dissipation 62 Coolant Potential 65 Energy Generation 59 Energy Capacity 1140 Matter Stores 300 Matter Capacity 300 Sight Range 24 Robot Scan Range 18 Terrain Scan Range 20 Terrain Scan Density 1010 ECM Strength 2 Jamming Range 14 Cloak Strength 2 Power Amplification 30 Additional Mass Support 9 Armor Coverage 825 Resistance: KI 30 Resistance: TH 30 Resistance: EX 50 Core Shielding 30 Weapon Shielding 66 Phase Shifting 10 Evasion (%) 84 Targeting Accuracy 16 Melee Accuracy 6 Target Analysis 5 Core Analysis 8 Armor Integrity Analysis 30 Recoil Reduction 4 Kinecelleration 30 Offensive Hacking 16 Defensive Hacking 20 Authchip Count 4 Item Schematics ----------------- Hvy. Assault Cannon | -8/Materials | Hacked Combat Drone Bay | -7/Data Miner | Free Lgt. Regenerative Plating | -7/Data Miner | Free Cld. Aerolev Unit | -7/Data Miner | Free Exp. Utility Shielding | -7/Data Miner | Free Com. Ion Cannon | -7/Data Miner | Free Gyrokinetic Inverter | -7/Data Miner | Free Point Defense System | -7/Data Miner | Free Imp. Arc Projector | -7/Data Miner | Free Imp. Focal Shield | -7/Data Miner | Free Imp. Remote Shield | -6/Zion | Archive Adv. Heat Sink | -6/Zion | Archive Imp. Component Analysis Suite | -6/Zion | Archive Energy Well | -6/Zion | Archive Adv. Trap Extractor | -6/Zion | Archive Adv. Signal Interpreter | -6/Zion | Archive Antigrav System | -6/Zion | Archive Hvy. Flak Cannon | -6/Zion | Archive Adv. Plasma Cannon | -6/Zion | Archive 0b10 Decoder Chip [Scout] | -6/Zion | Archive Antimatter Reactor | -6/Zion | Archive Lance | -6/Zion | Archive Mak. Transmission Jammer | -6/Zion | Archive Angular Momentum Engine | -6/Zion | Archive Hyp. Gauss Cannon | -6/Zion | Archive Assault Drone Bay | -5/Zhirov | Free Exp. Heat Sink | -5/Zhirov | Free Exp. Optical Array | -5/Zhirov | Free Imp. Arc Thrower | -5/Zhirov | Free Robot Schematics ------------------ Y-45 Defender | -8/Materials | Hacked C-17 Slicer | -8/Materials | Hacked H-55 Commando | -7/Data Miner | Free S-27 Virus | -7/Data Miner | Free M-14 Sweeper | -7/Data Miner | Free L-41 Fighter | -7/Data Miner | Free W-25 Informer | -6/Zion | Archive R-10 Processor | -6/Zion | Archive G-50 Soldier | -6/Zion | Archive C-57 Dissector | -6/Zion | Archive M-36 Artificer | -3/Testing | Archive A-15 Conveyor | -3/Testing | Archive Fabricated ------------ C-17 Slicer | x3 | -7/Factory | Authchip C-17 Slicer | x3 | -7/Factory | Authchip Hvy. Assault Cannon | x1 | -7/Factory | Authchip Hvy. Assault Cannon | x1 | -7/Factory | Authchip Gyrokinetic Inverter | x2 | -5/Factory | Authchip Lgt. Regenerative Plating | x1 | -5/Factory Imp. Phase Shifter | x1 | -4/Factory | Preloaded Alien Tech Used ----------------- Integrated Reactor Core Expander Transdimensional Reconstructor Achievements -------------- None Challenges ------------ None Game ------ Seed DecoderNetworkMapper Manual? 0 Play Time 06:24:40 Cumulative 69.6 hours Start 2022.05.17 @ 11:50:42 End 2022.05.17 @ 20:38:18 Sessions 1 Manual Loads 0 Difficulty Rogue Special Mode None Game No. 29 Rogue 29 Adventurer 0 Explorer 0 Win Type 0 Total 1 Types 1/0/0/0/0/0/0/0/0 Lore% 24 Gallery% 51 Achievement% 68 Wizard Run 0 Options --------- ASCII 0 Keyboard 0 Movement Numpad Keybinds 0 Fullscreen 1 Font 24/Smallcaps Map View 76x50 Tactical HUD 1 Map Filters NONE Filters LOW_CONTRAST(13,24,33) Steam 1 RUN: d79b5834-9c2f-4106-8c1b-09486073b993